bitfinex/quotes_ETHUSD_20241216
["timestamp","ask_amount","ask_price","bid_price","bid_amount"]
[1734372401551,0.7786,4039.4,4039.2,1.48543]
[1734372401945,0.8083,4040.3,4039.0,3.0]
[1734372402155,0.8083,4040.3,4039.5,1.48532]
[1734372402350,0.43263542,4040.2,4038.6,1.48566]
[1734372402600,0.8083,4040.3,4040.1,1.48509]
[1734372403478,0.12892835,4041.3,4039.0,4.48551]
[1734372403479,0.7926,4041.2,4040.3,1.48502]
[1734372403679,0.7926,4041.2,4039.8,1.4852]
[1734372403680,0.7926,4041.2,4040.4,1.48499]
[1734372404290,0.7926,4041.2,4040.4,1.48496]
[1734372404650,0.55,4041.1,4040.4,1.48496]
[1734372404848,0.55,4040.9,4040.4,1.48496]
[1734372405063,0.55,4040.9,4039.6,3.0]
[1734372405292,0.55,4040.9,4038.9,3.7598]
[1734372405293,0.55,4040.9,4040.1,1.4851]
[1734372405802,0.55,4040.9,4039.6,1.48526]
[1734372406307,0.55,4040.9,4038.9,3.7598]
[1734372406451,0.55,4040.9,4039.7,1.48522]
[1734372406654,0.55,4040.9,4039.6,1.48526]
[1734372406964,0.7557,4040.8,4039.6,1.48526]
[1734372407165,0.55,4040.7,4039.6,1.48526]
[1734372407364,0.55,4040.5,4039.6,1.48526]
[1734372407566,0.55,4040.5,4038.9,0.7598]
[1734372407793,0.55,4040.3,4038.3,0.7935]
[1734372408006,0.55,4040.0,4038.8,1.48557]
[1734372408372,0.55,4039.6,4037.9,1.4859]
[1734372408707,0.55,4039.4,4037.9,1.4859]
[1734372408870,0.55,4039.4,4038.1,1.48582]
[1734372409060,3.02565,4039.4,4038.1,1.48582]
[1734372409684,0.55,4039.2,4038.1,1.48582]
[1734372409886,0.55,4039.4,4037.3,1.48614]
[1734372410197,0.55,4039.2,4038.5,1.48568]
[1734372410503,0.55,4039.4,4037.6,1.486]
[1734372410718,0.55,4039.4,4038.7,1.48561]
[1734372411002,0.82,4039.7,4038.9,1.48553]
[1734372411302,0.82,4039.7,4038.3,1.48575]
[1734372411483,2.47572,4039.3,4037.2,0.12382035]
[1734372411688,3.26784,4039.6,4038.4,1.48573]
[1734372412205,0.55,4039.5,4038.4,1.48573]
[1734372412358,0.55,4039.6,4037.5,3.0]
[1734372412559,4.01201558,4040.2,4037.5,1.48605]
[1734372412560,0.55,4038.8,4037.5,1.48605]
[1734372412883,3.02614,4038.6,4037.3,1.48613]
[1734372413265,0.55,4038.6,4036.5,0.93283719]
[1734372413481,0.55,4038.8,4036.5,0.93283719]
[1734372413686,0.55,4038.6,4037.8,1.48595]
[1734372414084,0.55,4038.6,4038.1,1.48583]
[1734372414487,0.55,4038.6,4038.2,1.48579]
[1734372414691,0.55,4038.6,4037.5,1.48603]
[1734372414692,0.55,4038.6,4037.9,1.4859]
[1734372414997,0.55,4038.6,4038.3,1.48577]
[1734372415201,0.55,4038.8,4038.3,1.48577]
[1734372415423,0.55,4038.8,4037.2,0.52934013]
[1734372415560,3.7185,4038.9,4037.7,3.0]
[1734372415761,3.7185,4038.9,4037.6,3.80720128]
[1734372415762,3.7185,4038.9,4038.8,1.48558]
[1734372415956,3.7185,4038.9,4038.8,1.43558]
[1734372416414,1e-05,4038.9,4038.8,1.43558]
[1734372416769,1e-05,4038.9,4038.8,8.24278128]
[1734372416974,0.14715284,4041.0,4039.3,1.48538]
[1734372416975,0.94005284,4041.0,4039.3,1.48538]
[1734372417159,0.94005284,4041.0,4040.9,1.48481]
[1734372417160,0.7929,4041.0,4040.9,1.48481]
[1734372417360,0.8084,4042.0,4041.3,1.48466]
[1734372417561,0.8084,4042.0,4040.8,3.80720128]
[1734372417761,0.8084,4042.0,4041.8,1.48446]
[1734372418213,0.8084,4042.3,4041.4,1.4846]
[1734372418372,0.8084,4042.3,4040.9,0.8206]
[1734372418578,0.8084,4042.3,4041.6,1.48454]
[1734372419215,0.8084,4042.3,4042.1,1.48436]
[1734372419779,0.8084,4042.3,4041.9,1.48441]
[1734372420018,0.8084,4042.3,4041.4,3.0]
[1734372420244,0.8084,4042.3,4040.6,3.0]
[1734372420452,0.8084,4042.3,4040.4,0.7885]
[1734372420453,0.55,4042.2,4040.4,0.7885]
[1734372420657,0.55,4042.2,4039.5,0.7885]
[1734372420658,0.807,4042.1,4039.5,0.7885]
[1734372420960,0.55,4041.4,4039.6,1.48529]
[1734372421118,0.55,4041.2,4040.6,1.4849]
[1734372422137,0.55,4041.2,4040.6,1.48491]
[1734372422343,0.55,4041.2,4040.1,1.48508]
[1734372422344,0.55,4041.2,4040.7,1.48487]
[1734372422551,0.55,4041.2,4039.7,1.48525]
[1734372422552,0.55,4041.2,4040.2,3.0]
[1734372422702,0.55,4041.2,4039.5,0.7885]
[1734372422902,0.55,4041.2,4040.1,1.48508]
[1734372423105,0.55,4041.2,4039.7,3.0]
[1734372423106,0.55,4041.2,4039.5,0.7885]
[1734372423411,0.7847,4040.9,4039.7,1.48522]
[1734372423639,0.55,4040.8,4039.7,1.48522]
[1734372424005,0.55,4040.8,4039.4,1.48536]
[1734372424202,0.55,4040.6,4039.8,1.4852]
[1734372424424,0.55,4040.6,4039.5,1.48531]
[1734372424703,2.47496,4040.5,4039.2,1.48541]
[1734372424896,0.13347,4040.7,4037.6,1.48601]
[1734372424897,0.55,4040.1,4038.3,0.8277]
[1734372425309,0.7847,4040.4,4039.2,1.48542]
[1734372425310,0.55,4040.3,4039.2,1.48542]
[1734372425505,0.55,4040.1,4039.2,1.48542]
[1734372425820,0.55,4039.9,4038.2,0.124473]
[1734372426007,0.55,4039.9,4038.8,1.48557]
[1734372426356,0.55,4039.9,4038.3,1.48577]
[1734372426532,0.7999,4039.6,4038.7,1.48561]
[1734372426760,0.55,4039.5,4037.8,1.48595]
[1734372427060,0.55,4039.5,4039.0,1.4855]
[1734372427208,0.55,4039.5,4038.2,1.48579]
[1734372427405,0.55,4039.3,4037.9,1.4859]
[1734372427631,0.13499,4039.4,4038.0,1.48586]
[1734372427632,0.55,4039.1,4038.0,1.48586]
[1734372427845,0.55,4039.1,4037.6,1.48601]
[1734372428010,0.55,4039.1,4038.3,1.48576]
[1734372428410,0.55,4039.1,4037.8,1.48595]
[1734372428614,0.55,4039.1,4038.2,1.48578]
[1734372428848,0.55,4039.1,4037.8,1.48595]
[1734372428849,0.55,4038.9,4037.3,1.48614]
[1734372429020,0.55,4038.9,4038.7,1.48562]
[1734372429229,0.55,4039.1,4038.5,3.0]
[1734372429457,0.55,4039.1,4038.4,1.48572]
[1734372429769,0.55,4039.1,4038.5,1.48568]
[1734372430057,0.55,4038.9,4038.5,1.48568]
[1734372430256,0.55,4038.9,4038.1,3.0]
[1734372430257,0.55,4038.9,4038.6,1.48565]
[1734372430755,0.55,4038.9,4038.1,1.48583]
[1734372431565,0.55,4038.9,4037.2,1.48616]
[1734372431715,0.55,4038.6,4036.7,0.8018]
[1734372432053,0.55,4038.7,4036.9,2.97256]
[1734372432240,0.55,4038.7,4037.9,1.48589]
[1734372432442,0.55,4038.7,4038.2,1.4858]
[1734372433032,0.55,4038.7,4037.9,1.48589]
[1734372433218,0.55,4038.5,4037.8,1.48593]
[1734372433433,0.55,4038.5,4037.9,1.48591]
[1734372433748,0.55,4038.5,4037.0,1.5110156]
[1734372434064,0.55,4038.7,4038.5,1.48568]
[1734372434920,0.55,4038.7,4038.2,1.4858]
[1734372435121,0.68773,4038.7,4038.2,1.4858]
[1734372435327,0.68773,4038.7,4037.3,3.0]
[1734372435328,0.68773,4038.7,4038.6,1.48566]
[1734372435556,0.7582,4040.1,4038.8,1.48557]
[1734372435759,0.7582,4040.0,4038.8,1.48557]
[1734372435962,0.7582,4040.0,4038.4,3.0]
[1734372436163,0.55,4040.2,4036.1,1.02455705]
[1734372436164,0.7632,4039.6,4038.1,3.0]
[1734372436362,2.4755,4039.6,4038.3,1.48576]
[1734372436572,2.4755,4039.6,4037.2,0.8027]
[1734372436573,0.7632,4039.4,4037.8,1.48592]
[1734372436775,0.7632,4039.1,4037.8,1.48592]
[1734372437188,0.55,4039.0,4036.8,1.48632]
[1734372437481,0.823,4038.9,4036.8,1.48632]
[1734372437638,0.55,4038.8,4036.9,1.48628]
[1734372437828,0.55,4038.8,4036.7,0.9265048]
[1734372437829,0.55,4038.8,4036.8,3.80720128]
[1734372438033,0.55,4038.8,4038.7,1.48562]
[1734372438337,0.752,4039.8,4038.7,1.48562]
[1734372438643,0.88096126,4039.8,4038.8,1.48555]
[1734372439074,0.88096126,4039.8,4038.6,1.48566]
[1734372439235,0.88096126,4039.8,4038.5,1.48567]
[1734372439678,0.55,4039.7,4038.8,1.48555]
[1734372439874,0.55,4039.5,4038.9,1.48554]
[1734372440779,0.55,4039.5,4037.8,0.7914]
[1734372441069,0.55,4039.5,4038.9,1.48555]
[1734372441229,0.55,4039.5,4038.5,3.0]
[1734372441432,0.55,4039.5,4037.8,0.7914]
[1734372441433,0.55,4039.7,4037.8,3.7914]
[1734372441633,0.88096126,4039.8,4038.8,3.0]
[1734372441881,0.88096126,4039.8,4039.4,1.48534]
[1734372442377,0.88096126,4039.8,4037.8,0.7914]
[1734372442378,0.752,4039.8,4038.1,3.0]
[1734372442533,0.752,4039.8,4039.7,1.48525]
[1734372443583,0.8073,4040.3,4040.2,1.48507]
[1734372444466,0.8073,4040.3,4039.8,1.48518]
[1734372444467,0.8073,4040.3,4039.9,1.48515]
[1734372444648,0.8073,4040.3,4040.2,1.48507]
[1734372444842,0.8282,4041.0,4040.7,1.48488]
[1734372445767,0.8282,4041.0,4039.9,1.48517]
[1734372445936,0.8282,4041.0,4040.5,1.48494]
[1734372446136,0.55,4040.9,4040.5,1.48494]
[1734372446367,0.68782,4040.9,4040.5,1.48494]
[1734372446564,0.68782,4040.9,4040.6,1.48492]
[1734372446938,0.68782,4040.9,4040.7,1.48488]
[1734372447272,0.55,4040.9,4040.7,1.48488]
[1734372447978,0.8282,4041.0,4040.9,1.48481]
[1734372448177,1.53683558,4041.8,4041.2,1.48469]
[1734372448178,0.7856,4041.8,4041.2,1.48469]
[1734372448483,0.7856,4041.8,4040.2,0.8121]
[1734372448484,0.91449965,4041.8,4040.7,3.0]
[1734372448658,0.91449965,4041.8,4040.9,1.48479]
[1734372449191,0.55,4041.7,4040.9,1.48479]
[1734372449481,0.55,4041.5,4040.9,1.48479]
[1734372450466,0.55,4041.5,4039.8,3.0]
[1734372450467,0.55,4041.3,4039.8,3.0]
[1734372450673,0.55,4041.0,4039.2,0.7758]
[1734372450969,0.55,4041.0,4039.5,1.48533]
[1734372451169,0.55,4041.0,4039.2,0.7758]
[1734372451370,0.7719,4041.1,4039.8,1.48522]
[1734372451584,0.7719,4041.1,4039.7,3.38321992]
[1734372451805,0.7719,4041.1,4040.9,1.48481]
[1734372452005,0.7719,4041.1,4040.4,1.48499]
[1734372452315,0.7719,4041.1,4040.7,1.48488]
[1734372452673,0.7719,4041.1,4040.4,1.48497]
[1734372453004,0.7719,4041.1,4040.6,1.48491]
[1734372453178,0.7719,4041.1,4040.5,1.48492]
[1734372453381,0.7719,4041.1,4040.3,1.48503]
[1734372453703,2.0491141,4042.1,4040.3,1.48503]
[1734372453704,0.7921,4042.7,4040.8,3.0]
[1734372454211,0.7921,4042.7,4042.1,1.48437]
[1734372454622,0.7921,4042.7,4041.7,1.48451]
[1734372454977,0.7921,4042.7,4040.8,4.48482]
[1734372455321,0.7921,4042.7,4041.9,1.48444]
[1734372455523,0.7921,4042.7,4041.7,1.48451]
[1734372455819,2.278648,4042.6,4041.3,1.48464]
[1734372455974,2.4739,4042.2,4040.9,1.48481]
[1734372456179,2.47359,4042.8,4040.6,1.4849]
[1734372456180,0.7915,4042.0,4040.6,1.4849]
[1734372456380,2.47377,4042.4,4040.6,1.4849]
[1734372456381,2.47415,4041.8,4040.6,1.48489]
[1734372456719,2.0491141,4042.7,4040.3,3.0]
[1734372456720,0.55,4041.6,4040.9,1.48481]
[1734372457025,0.55,4041.6,4040.5,3.0]
[1734372457316,0.7915,4041.7,4041.3,1.48464]
[1734372457619,0.7915,4041.7,4041.4,1.48463]
[1734372457851,0.7915,4041.7,4039.3,2.601]
[1734372457852,0.7915,4041.7,4040.3,3.0]
[1734372458068,0.55,4041.6,4040.5,1.48493]
[1734372458349,0.55,4041.4,4040.7,1.48488]
[1734372458712,0.7915,4041.7,4040.2,4.48506]
[1734372459025,0.7915,4041.7,4040.5,1.48494]
[1734372459360,0.7915,4041.7,4041.4,1.48463]
[1734372459646,5.0491141,4042.8,4041.7,3.0]
[1734372459647,0.7623,4042.8,4041.7,3.0]
[1734372459855,0.7623,4042.8,4041.7,1.48449]
[1734372460946,2.6022872,4043.0,4041.2,1.48468]
[1734372460947,1.3739,4042.5,4041.2,1.48468]
[1734372461147,1.3739,4042.5,4041.5,1.48456]
[1734372461849,1.3739,4042.5,4041.7,1.48451]
[1734372462010,1.758644,4042.5,4041.7,1.48451]
[1734372462568,1.758644,4042.5,4041.2,0.02474245]
[1734372462719,1.3739,4042.5,4041.4,3.0]
[1734372462924,1.3739,4042.5,4041.7,1.48452]
[1734372463345,1.3739,4042.5,4041.8,1.48448]
[1734372463520,0.8239,4042.5,4041.2,3.0]
[1734372463734,0.8239,4042.5,4042.0,1.48441]
[1734372464137,0.8239,4042.5,4041.8,1.48448]
[1734372464748,0.8239,4042.5,4041.7,1.48451]
[1734372465343,0.55,4042.4,4041.2,1.48467]
[1734372465715,0.55,4042.4,4041.3,1.48464]
[1734372465716,0.934762,4042.4,4041.3,1.48464]
[1734372465923,0.934762,4042.4,4040.7,1.48489]
[1734372465924,0.55,4042.0,4040.7,1.48489]
[1734372466150,0.55,4042.0,4040.5,1.245203]
[1734372466838,0.55,4042.0,4040.5,0.448503]
[1734372467014,0.7968,4041.6,4040.7,1.48488]
[1734372467220,0.55,4041.5,4040.7,1.48488]
[1734372467420,0.55,4041.5,4040.7,1.48487]
[1734372467768,0.7968,4041.6,4040.7,4.48485]
[1734372467981,5.17487381,4043.0,4040.7,4.48485]
[1734372467982,0.8037,4042.7,4040.9,0.7999]
[1734372468270,0.8037,4042.7,4041.8,1.48445]
[1734372468578,0.8037,4042.7,4041.6,1.48454]
[1734372469126,3.27731,4042.7,4041.1,1.48471]
[1734372469439,3.27731,4042.7,4041.6,1.48454]
[1734372469440,0.327731,4042.6,4041.6,1.48454]
[1734372469640,0.55,4042.5,4041.4,1.48463]
[1734372469855,0.55,4042.6,4041.5,1.48458]
[1734372470168,0.55,4042.3,4041.2,1.48469]
[1734372470389,0.55,4042.2,4040.8,3.0]
[1734372470543,0.55,4042.2,4040.2,3.38321992]
[1734372470544,2.47426,4041.7,4040.2,3.38321992]
[1734372470749,0.55,4041.4,4040.5,1.48496]
[1734372471051,0.8037,4041.5,4041.1,1.48473]
[1734372471392,5.70038344,4043.0,4040.6,1.48491]
[1734372471393,0.7816,4041.3,4040.6,1.48491]
[1734372471950,0.7816,4041.3,4040.8,1.48484]
[1734372472152,0.7816,4041.3,4039.9,4.17511992]
[1734372472384,0.7816,4041.3,4040.0,1.93645419]
[1734372472685,0.7816,4041.3,4040.5,1.48495]
[1734372473090,0.55,4041.2,4040.5,1.48495]
[1734372474891,0.55,4041.2,4039.9,3.7919]
[1734372475076,0.55,4041.2,4040.1,1.48511]
[1734372475278,0.55,4041.2,4040.4,1.48499]
[1734372476052,0.55,4041.2,4040.5,1.48496]
[1734372476457,0.55,4041.2,4040.6,1.4849]
[1734372476684,0.7816,4041.3,4040.4,0.02474936]
[1734372476881,0.7816,4041.3,4040.3,1.48503]
[1734372477086,0.7816,4041.3,4040.4,0.20465632]
[1734372477497,0.7816,4041.3,4040.9,1.48481]
[1734372477793,3.73775572,4043.0,4041.4,1.48459]
[1734372477794,0.8235,4041.8,4041.4,1.48459]
[1734372477997,0.8235,4041.8,4041.2,1.48467]
[1734372478195,0.8235,4041.8,4040.9,1.48479]
[1734372478394,0.8235,4041.8,4040.2,1.48507]
[1734372478557,0.8235,4041.8,4040.9,1.48481]
[1734372478758,0.8235,4041.8,4040.4,3.0]
[1734372479006,0.8235,4041.8,4041.0,1.48476]
[1734372479165,0.55,4041.7,4040.8,3.0]
[1734372479358,0.55,4041.7,4041.1,1.48474]
[1734372480415,0.55,4041.7,4041.2,1.48469]
[1734372480627,1.3792,4042.0,4040.0,1.48511]
[1734372480919,0.12889094,4042.1,4041.0,1.48478]
[1734372480920,0.55,4041.8,4041.0,1.48478]
[1734372481212,0.55,4041.6,4041.0,1.48478]
[1734372481513,0.55,4041.6,4040.1,3.0]
[1734372481714,0.55,4041.6,4040.3,3.0]
[1734372481914,0.55,4041.8,4040.5,1.48493]
[1734372482215,0.55,4041.8,4041.4,1.48461]
[1734372482507,0.55,4041.8,4040.9,1.48481]
[1734372482508,0.8292,4041.9,4041.8,1.48448]
[1734372482717,6.90457793,4043.1,4042.5,1.48423]
[1734372482718,0.8292,4042.6,4042.5,1.48423]
[1734372483588,0.8292,4042.6,4041.9,1.48442]
[1734372483781,0.8292,4042.6,4041.7,1.48452]
[1734372484027,2.57780922,4043.4,4042.1,3.0]
[1734372484028,0.7858,4043.4,4042.1,3.0]
[1734372484319,0.7858,4043.4,4043.3,1.48393]
[1734372485210,0.7858,4043.4,4042.5,3.0]
[1734372485413,0.7858,4043.4,4043.2,1.48393]
[1734372485616,0.93064458,4043.8,4043.2,1.48396]
[1734372485914,0.55668957,4043.7,4043.4,1.48389]
[1734372486070,0.55668957,4043.7,4042.7,0.7988]
[1734372486412,0.8018,4043.8,4042.7,0.7988]
[1734372486574,0.8018,4043.8,4043.1,1.484]
[1734372486775,0.8018,4043.8,4043.5,1.48384]
[1734372486991,0.8018,4043.8,4043.1,1.48397]
[1734372487378,0.8018,4043.8,4042.3,3.808]
[1734372487379,0.29890724,4043.7,4042.3,3.808]
[1734372487584,0.8018,4043.8,4043.2,1.48393]
[1734372487871,0.7515,4043.6,4042.4,1.48424]
[1734372488071,0.55,4043.3,4042.0,1.48437]
[1734372488273,0.55,4043.3,4040.7,1.9112032]
[1734372488274,0.7515,4043.0,4040.7,1.78889686]
[1734372488472,0.55,4042.7,4041.7,1.48451]
[1734372488918,2.60844192,4042.7,4041.8,1.48448]
[1734372489113,0.59401591,4042.6,4041.8,1.48448]
[1734372489300,0.59401591,4042.6,4041.4,1.48462]
[1734372489301,0.7751,4042.5,4041.4,1.48462]
[1734372489619,0.7751,4042.5,4040.5,0.3209697]
[1734372489826,0.55,4042.2,4041.1,1.48473]
[1734372490113,0.7751,4042.1,4041.2,1.4847]
[1734372490315,0.7751,4042.1,4040.4,0.8156]
[1734372490316,2.39679611,4042.0,4040.4,0.8156]
[1734372490514,2.39679611,4042.0,4040.7,1.48488]
[1734372490718,2.83354192,4042.1,4040.4,1.1365697]
[1734372491024,0.7751,4042.1,4041.7,1.48451]
[1734372491327,0.7751,4042.1,4040.8,0.3209697]
[1734372491328,0.2751,4042.1,4041.3,1.48464]
[1734372491671,0.2751,4042.1,4042.0,1.48441]
[1734372492071,0.59401591,4042.6,4041.3,0.772]
[1734372492316,0.59401591,4042.6,4042.1,1.48436]
[1734372492519,0.26524578,4042.5,4042.1,1.48436]
[1734372492876,0.26524578,4042.5,4042.3,1.48427]
[1734372493195,0.59401591,4042.6,4042.1,1.48436]
[1734372493719,2.65245783,4042.6,4042.1,1.48436]
[1734372494272,0.7751,4042.5,4042.2,1.48433]
[1734372494891,0.7751,4042.5,4041.9,1.48444]
[1734372495116,2.83354192,4042.5,4041.9,1.48444]
[1734372495465,2.83354192,4042.5,4042.1,1.48437]
[1734372495818,0.7751,4042.5,4041.3,0.772]
[1734372496018,0.7751,4042.5,4041.3,0.3772]
[1734372496219,2.05844192,4042.3,4041.4,1.48462]
[1734372496452,2.05844192,4042.1,4041.4,1.48462]
[1734372496833,2.05844192,4042.1,4041.2,1.4847]
[1734372497037,2.83354192,4042.0,4041.2,1.4847]
[1734372497347,2.83354192,4042.0,4040.6,1.48489]
[1734372497553,2.60011469,4041.9,4041.1,1.48473]
[1734372498268,2.60011469,4041.9,4040.3,0.772]
[1734372498269,0.54167277,4041.9,4041.2,1.4847]
[1734372498471,2.60011469,4041.9,4041.2,1.4847]
[1734372498972,0.54167277,4041.9,4040.5,4.86816992]
[1734372499184,2.83354192,4042.0,4040.5,3.38321992]
[1734372499385,0.7751,4042.0,4041.0,3.38321992]
[1734372499681,0.7691,4042.5,4042.3,1.4843]
[1734372500398,0.7691,4042.5,4041.9,1.48445]
[1734372500399,0.7691,4042.5,4042.4,1.48426]
[1734372500540,2.05844192,4043.3,4042.8,1.48411]
[1734372500740,2.05844192,4043.5,4043.3,1.48393]
[1734372500993,2.05844192,4043.5,4042.4,0.148426]
[1734372500994,0.8033,4043.8,4042.4,1.632676]
[1734372501144,0.8033,4043.8,4043.3,1.48391]
[1734372501344,0.8033,4043.8,4042.5,0.2452876]
[1734372501715,0.8033,4043.8,4043.4,1.48388]
[1734372502154,0.8033,4043.8,4042.5,0.2452876]
[1734372502342,2.81554192,4044.2,4042.5,3.62850752]
[1734372502689,0.7571,4044.2,4044.1,1.48364]
[1734372505474,0.7571,4044.2,4043.1,2.27239]
[1734372505475,0.7571,4044.2,4043.4,1.48388]
[1734372505678,0.55,4044.1,4043.7,1.48378]
[1734372505861,0.13071,4044.0,4043.7,1.48378]
[1734372506062,0.13071,4044.0,4043.8,1.48372]
[1734372506368,0.13071,4044.0,4043.9,1.48371]
[1734372506866,0.13071,4044.0,4042.9,1.48408]
[1734372507067,0.13071,4044.0,4043.9,1.48371]
[1734372507296,0.13071,4044.0,4042.7,0.793]
[1734372507602,0.13071,4044.0,4043.5,1.48385]
[1734372507790,0.03601045,4043.9,4043.5,1.48385]
[1734372508108,3.41923037,4043.9,4043.4,1.48386]
[1734372508259,0.35499404,4043.8,4043.4,1.48386]
[1734372510206,0.35499404,4043.8,4043.7,1.48378]
[1734372510621,0.35499404,4043.8,4043.3,1.48391]
[1734372511229,0.35499404,4043.8,4042.4,3.148426]
[1734372511230,0.35499404,4043.8,4042.4,0.148426]
[1734372511385,0.35499404,4043.8,4043.2,1.48396]
[1734372511587,0.3868924,4043.7,4042.7,1.48415]
[1734372511782,0.3868924,4043.7,4043.1,1.484]
[1734372511783,0.7837,4043.6,4043.1,1.484]
[1734372512229,0.7837,4043.6,4042.7,1.48415]
[1734372512535,0.7837,4043.6,4042.0,0.8191]
[1734372512824,0.7837,4043.6,4043.0,1.48404]
[1734372512825,1.23908123,4043.6,4043.0,1.48404]
[1734372513527,1.23908123,4043.6,4043.1,1.484]
[1734372513893,1.23908123,4043.6,4043.2,1.48396]
[1734372514194,0.7837,4043.6,4043.1,1.484]
[1734372514395,0.7837,4043.6,4042.0,0.8191]
[1734372514634,0.7837,4043.6,4042.0,3.8191]
[1734372514829,0.7837,4043.6,4042.8,1.4841]
[1734372514997,0.7837,4043.6,4042.9,1.48405]
[1734372515204,0.95561706,4044.5,4044.0,1.48367]
[1734372515398,0.95561706,4044.5,4043.9,1.48369]
[1734372515605,0.95561706,4044.5,4042.9,0.963405]
[1734372515806,0.95561706,4044.5,4043.6,1.48381]
[1734372516443,0.95561706,4044.5,4043.5,1.48386]
[1734372516602,0.55,4044.4,4043.7,1.48377]
[1734372516933,0.55,4044.4,4043.2,1.48396]
[1734372517541,0.55,4044.4,4043.6,1.48382]
[1734372517735,0.15056171,4044.3,4043.6,1.48382]
[1734372518937,0.8249,4044.0,4041.9,0.7817]
[1734372519117,3.02286,4043.9,4042.8,1.48411]
[1734372519317,3.02286,4043.9,4041.9,0.7817]
[1734372519318,0.55,4043.9,4041.9,0.7817]
[1734372519533,0.55,4043.7,4042.1,1.48437]
[1734372519721,0.55,4043.7,4042.0,0.41649199]
[1734372519919,0.55,4043.7,4043.1,1.48397]
[1734372520209,0.13749,4043.8,4043.4,1.48389]
[1734372520440,0.13749,4043.8,4042.7,0.7933]
[1734372520649,0.8249,4044.0,4042.7,0.7933]
[1734372520815,0.7776,4044.4,4042.8,1.48411]
[1734372521023,0.7776,4044.4,4043.9,1.48369]
[1734372521227,0.77089725,4044.4,4044.1,1.48363]
[1734372521408,0.77089725,4044.4,4042.8,1.48411]
[1734372521637,0.77089725,4044.4,4043.9,1.48369]
[1734372522240,0.77089725,4044.4,4043.0,1.48404]
[1734372522447,0.77089725,4044.4,4044.3,1.48356]
[1734372522816,0.12881896,4044.9,4043.6,0.7734]
[1734372523016,0.12881896,4044.9,4044.1,1.48363]
[1734372523321,0.12881896,4044.9,4044.6,1.48345]
[1734372523716,0.12881896,4044.9,4043.7,1.48378]
[1734372523912,0.12881896,4044.9,4043.8,1.48375]
[1734372524159,1.002,4045.0,4043.8,1.48375]
[1734372524454,0.7954,4044.9,4044.4,1.4835]
[1734372524639,0.19262092,4044.8,4044.4,1.4835]
[1734372524968,0.19262092,4044.8,4044.5,1.48349]
[1734372526354,0.19262092,4044.8,4043.6,0.7734]
[1734372526564,0.19262092,4044.8,4043.6,1.48381]
[1734372526857,0.19262092,4044.8,4044.0,1.23639]
[1734372527064,0.19900209,4044.7,4044.0,1.23639]
[1734372527766,0.19900209,4044.7,4043.2,0.786]
[1734372527970,0.19900209,4044.7,4044.0,1.23638]
[1734372528180,0.19900209,4044.7,4043.5,1.23653]
[1734372528345,0.19900209,4044.7,4043.2,0.786]
[1734372528683,0.19900209,4044.7,4043.6,1.23651]
[1734372528684,0.55,4044.6,4043.6,1.23651]
[1734372528823,0.32213121,4044.5,4043.5,1.23653]
[1734372529024,0.19900209,4044.7,4043.6,1.23651]
[1734372529332,0.19900209,4044.7,4043.2,0.786]
[1734372529527,1.002,4045.0,4044.3,1.23628]
[1734372530477,1.002,4045.0,4044.1,1.23636]
[1734372531061,1.002,4045.0,4044.4,1.23627]
[1734372531573,1.002,4045.0,4043.5,0.29951803]
[1734372531574,0.55,4044.9,4043.5,0.29951803]
[1734372531803,0.74004092,4044.9,4043.9,1.23641]
[1734372531947,0.74004092,4044.9,4043.4,0.29951803]
[1734372532279,0.74004092,4044.9,4043.3,0.29951803]
[1734372532280,0.55,4044.7,4043.3,0.29951803]
[1734372532438,0.55,4044.7,4043.9,1.23642]
[1734372532638,0.55,4044.5,4043.9,1.23642]
[1734372533087,0.55,4044.5,4043.8,1.23645]
[1734372534375,0.55,4044.5,4043.6,1.23649]
[1734372534677,0.55,4044.0,4043.0,1.2367]
[1734372534831,0.55,4044.0,4043.0,1.53621803]
[1734372535035,0.55,4044.0,4043.1,0.3242497]
[1734372535272,0.55,4044.0,4043.1,0.29951803]
[1734372535588,0.55,4044.0,4043.3,1.23658]
[1734372535744,0.55,4044.0,4043.1,0.29951803]
[1734372535745,0.55,4044.3,4043.4,1.23657]
[1734372535954,0.55,4044.1,4041.8,0.7631]
[1734372536273,3.7859,4043.2,4041.9,1.23704]
[1734372536475,0.7888,4043.1,4041.2,2.00034]
[1734372536684,0.55,4042.8,4041.6,1.2371]
[1734372536896,0.55,4042.8,4041.3,0.53835599]
[1734372537100,0.55,4042.9,4041.3,0.81867402]
[1734372537324,0.55,4043.0,4042.1,0.766]
[1734372537591,0.55,4043.0,4042.5,1.23684]
[1734372537797,0.55,4043.0,4042.1,2.00298]
[1734372538097,0.55,4043.0,4042.2,1.23695]
[1734372538258,0.55,4043.0,4042.3,0.02473423]
[1734372538459,0.7957,4043.5,4043.1,1.23665]
[1734372538662,0.7957,4043.9,4042.1,4.34951792]
[1734372538879,0.7957,4043.9,4043.3,1.23659]
[1734372540435,0.55,4043.8,4043.5,1.23654]
[1734372540664,0.55,4043.8,4043.4,1.23657]
[1734372541129,0.55,4043.8,4043.5,1.23654]
[1734372541697,0.55,4043.8,4043.3,1.23658]